OrganisationURI,OrganisationLabel,OrganisationalUnit,TransactionNumber,Invoice Ref.,BeneficiaryName,Expense Type,Purpose,PaymentDate,Amount
http://statistics.data.gov.uk/id/local-authority-district/23UB,Cheltenham Borough Council,Development costs - Garage Sites 2b,14040982,25549,3 Counties Drain Services,C1107-CAH054,Building Works,06/11/2015,1200.00
http://statistics.data.gov.uk/id/local-authority-district/23UB,Cheltenham Borough Council,Cheltenham Municipal Offices,14040672,177696,A & E Fire Equipment Limited,R2008-ADB101,R & M of Build - Reactive Repairs,06/11/2015,7516.60
http://statistics.data.gov.uk/id/local-authority-district/23UB,Cheltenham Borough Council,Cheltenham Municipal Offices,14040655,178382,A & E Fire Equipment Limited,R2008-ADB101,R & M of Build - Reactive Repairs,06/11/2015,971.75
http://statistics.data.gov.uk/id/local-authority-district/23UB,Cheltenham Borough Council,Cemetery & Crematorium Repairs & Maintenance,14040842,6702,Acoustic Consultants Limited,R4003-CCM111,Tools & Equipment - R & M,06/11/2015,900.00
http://statistics.data.gov.uk/id/local-authority-district/23UB,Cheltenham Borough Council,Air Quality,14040549,6648,Air Monitors Limited,R4003-REG012,Tools & Equipment - R & M,06/11/2015,960.00
http://statistics.data.gov.uk/id/local-authority-district/23UB,Cheltenham Borough Council,Fire Protection,14040516,30157,Allhands Limited T/A Harrold Jones Services,C1107-CAH015,Building Works,06/11/2015,15980.00
http://statistics.data.gov.uk/id/local-authority-district/23UB,Cheltenham Borough Council,Revenues & Benefits Overheads,14040910,64123,Alpha Colour Printers Limited,R4300-LTC101,Printing - Services,06/11/2015,586.00
http://statistics.data.gov.uk/id/local-authority-district/23UB,Cheltenham Borough Council,Individual Electoral Registration,14040947,28549,Alpha Response Print & Mail Limited,R4300-ELE010,Printing - Services,13/11/2015,1434.86
http://statistics.data.gov.uk/id/local-authority-district/23UB,Cheltenham Borough Council,Flood Risk Management,14041007,882,Anderson Civil Engineering UK Limited,R5001-FRM101,TPP - Major External Contractors,20/11/2015,819.94
http://statistics.data.gov.uk/id/local-authority-district/23UB,Cheltenham Borough Council,Development costs - Garage Sites 2b,14041163,CBHL/2188,Aspects Services (UK) Limited (ASL),C1107-CAH054,Building Works,27/11/2015,6750.00
http://statistics.data.gov.uk/id/local-authority-district/23UB,Cheltenham Borough Council,Recreation Centre Repairs & Maintenance,14040826,55990,AVT Reliability Pump Division,R2080-REC111,Mechanical Services,06/11/2015,1020.00
http://statistics.data.gov.uk/id/local-authority-district/23UB,Cheltenham Borough Council,Building Control - Fee Earning Work,14041040,BRG465,B R G Interim Solutions Limited,R1100-BUC001,Agency Staff,20/11/2015,1850.74
http://statistics.data.gov.uk/id/local-authority-district/23UB,Cheltenham Borough Council,Building Control - Fee Earning Work,14041039,BRG504,B R G Interim Solutions Limited,R1100-BUC001,Agency Staff,20/11/2015,1871.12
http://statistics.data.gov.uk/id/local-authority-district/23UB,Cheltenham Borough Council,External Improvements,14040915,C3279-2112/5273,Bersche-Rolt Limited,C1107-CAH003,Building Works,06/11/2015,1119.83
http://statistics.data.gov.uk/id/local-authority-district/23UB,Cheltenham Borough Council,External Improvements,14040914,C5061-2053/2083/5249,Bersche-Rolt Limited,C1107-CAH003,Building Works,06/11/2015,8120.73
http://statistics.data.gov.uk/id/local-authority-district/23UB,Cheltenham Borough Council,Cheltenham Business Partnership,14041154,150211-032,Blackadder Media Limited,R4411-HLD130,Consultancy Fees,27/11/2015,4290.00
http://statistics.data.gov.uk/id/local-authority-district/23UB,Cheltenham Borough Council,External Improvements,14040913,6684,C &  R Decorating and Maintenance Limited,C1107-CAH003,Building Works,06/11/2015,626.00
http://statistics.data.gov.uk/id/local-authority-district/23UB,Cheltenham Borough Council,"Cemetery, Crematorium and Churchyards",14040504,551654,Comensura Limited,R1100-CCM001,Agency Staff,06/11/2015,2971.67
http://statistics.data.gov.uk/id/local-authority-district/23UB,Cheltenham Borough Council,"Cemetery, Crematorium and Churchyards",14041222,552695,Comensura Limited,R1100-CCM001,Agency Staff,27/11/2015,4599.10
http://statistics.data.gov.uk/id/local-authority-district/23UB,Cheltenham Borough Council,GO ICT Centre of Excellence,14040869,SIT111266,Commercial IT services Limited (IT Purchases),R4534-SUP101,IT - Maint Agreements,06/11/2015,14885.00
http://statistics.data.gov.uk/id/local-authority-district/23UB,Cheltenham Borough Council,Custodians,14040884,SINV1139176,Commercial Limited (Office Stationery only),R4308-ADB102,Stationery,06/11/2015,698.00
http://statistics.data.gov.uk/id/local-authority-district/23UB,Cheltenham Borough Council,HRA Balance Sheet,14040823,548,Cook Residential Limited,B8710-BAL200,Capital Receipts Reserve - transfer of sale proceeds of non-current assets,06/11/2015,2062.50
http://statistics.data.gov.uk/id/local-authority-district/23UB,Cheltenham Borough Council,HRA Balance Sheet,14040822,556,Cook Residential Limited,B8710-BAL200,Capital Receipts Reserve - transfer of sale proceeds of non-current assets,06/11/2015,1455.00
http://statistics.data.gov.uk/id/local-authority-district/23UB,Cheltenham Borough Council,Treasury Management,14040833,106089,Corpstar Investments Limited T/A Logotech Systems,R4400-COR006,Services - Professional Fees,06/11/2015,1000.00
http://statistics.data.gov.uk/id/local-authority-district/23UB,Cheltenham Borough Council,Play areas,14040930,C25884,Cotswold Drain Service Limited,C4000-CAP101,Acquisition of Equipment,13/11/2015,2440.00
http://statistics.data.gov.uk/id/local-authority-district/23UB,Cheltenham Borough Council,Homelessness,14040837,526,County Community Projects (CCP),R6280-HOM001,Grants,06/11/2015,3750.00
http://statistics.data.gov.uk/id/local-authority-district/23UB,Cheltenham Borough Council,Recycling Collection Schemes,14041164,3002526,Craemer UK Limited,R4000-RYC006,Equipment Purchase,27/11/2015,11250.00
http://statistics.data.gov.uk/id/local-authority-district/23UB,Cheltenham Borough Council,Cheltenham Environmental Fund- Transport,14041049,2001,Cyclehoop Limited,R4000-ENF103,Equipment Purchase,20/11/2015,1934.00
http://statistics.data.gov.uk/id/local-authority-district/23UB,Cheltenham Borough Council,Play areas enhancement,14041175,927,D A Jones Landscapes,C4000-CAP102,Acquisition of Equipment,27/11/2015,526.00
http://statistics.data.gov.uk/id/local-authority-district/23UB,Cheltenham Borough Council,Play areas enhancement,14041175,927,D A Jones Landscapes,C4000-CAP102,Acquisition of Equipment,27/11/2015,990.00
http://statistics.data.gov.uk/id/local-authority-district/23UB,Cheltenham Borough Council,Community Development,14040835,290915,Deborah Jeremiah,R6280-COM001,Grants,06/11/2015,1042.00
http://statistics.data.gov.uk/id/local-authority-district/23UB,Cheltenham Borough Council,Community Development,14041099,301015,Deborah Jeremiah,R6280-COM001,Grants,20/11/2015,1042.00
http://statistics.data.gov.uk/id/local-authority-district/23UB,Cheltenham Borough Council,Civic Pride - St Marys Churchyard,14041142,StMary001,Diana Hatton Consultancy,C1105-CAP154,Design Services,27/11/2015,500.00
http://statistics.data.gov.uk/id/local-authority-district/23UB,Cheltenham Borough Council,Licensing,14041117,994748,Disclosure & Barring Service,R1601-REG002,CRB Police Checks,27/11/2015,528.00
http://statistics.data.gov.uk/id/local-authority-district/23UB,Cheltenham Borough Council,Recreation Centre Repairs & Maintenance,14040850,DG 3723,Dive Gym Equipment Limited,R2083-REC111,R&M of Build - Routine,06/11/2015,664.58
http://statistics.data.gov.uk/id/local-authority-district/23UB,Cheltenham Borough Council,Cemetery & Crematorium Repairs & Maintenance,14041006,JL08-2743,Eagle Safety & Environment Limited,R2008-CCM111,R & M of Build - Reactive Repairs,13/11/2015,1924.00
http://statistics.data.gov.uk/id/local-authority-district/23UB,Cheltenham Borough Council,Asbestos Management,14040943,4706,Environmental Management Solutions Limited,C1107-CAH012,Building Works,06/11/2015,27299.00
http://statistics.data.gov.uk/id/local-authority-district/23UB,Cheltenham Borough Council,Human Resources,14040962,150776,Flu Xpress Limited,R4401-SUP003,Services - Fees and Charges,13/11/2015,753.78
http://statistics.data.gov.uk/id/local-authority-district/23UB,Cheltenham Borough Council,Development costs - Swindon Road,14040576,1150,Focus Ecology Limited,C1107-CAH050,Building Works,06/11/2015,805.00
http://statistics.data.gov.uk/id/local-authority-district/23UB,Cheltenham Borough Council,Joint Core Strategy,14040560,36825,Fosters Rooms Limited,R4400-PLP101,Services - Professional Fees,06/11/2015,950.00
http://statistics.data.gov.uk/id/local-authority-district/23UB,Cheltenham Borough Council,Human Resources,14040991,SIN144067,Frontier Software plc,R4534-SUP003,IT - Maint Agreements,13/11/2015,3871.22
http://statistics.data.gov.uk/id/local-authority-district/23UB,Cheltenham Borough Council,External Improvements,14040824,GP15/014329,G Purchase Construction Limited,C1107-CAH003,Building Works,06/11/2015,33814.58
http://statistics.data.gov.uk/id/local-authority-district/23UB,Cheltenham Borough Council,External Improvements,14040979,GP15/014757,G Purchase Construction Limited,C1107-CAH003,Building Works,20/11/2015,105329.77
http://statistics.data.gov.uk/id/local-authority-district/23UB,Cheltenham Borough Council,Supervision and Management,14041145,226,Gaskins Treework Specialists,R2070-HRA110,Tree Work,27/11/2015,810.00
http://statistics.data.gov.uk/id/local-authority-district/23UB,Cheltenham Borough Council,Parks & Gardens Operations,14040927,77303,Gedney Bulb Company Limited,R2075-OPS001,Grounds Maintenance - Contract,13/11/2015,888.00
http://statistics.data.gov.uk/id/local-authority-district/23UB,Cheltenham Borough Council,Sustainability Measures,14040515,75361,Glevum Heating & Plumbing Limited,C1107-CAH032,Building Works,06/11/2015,54740.00
http://statistics.data.gov.uk/id/local-authority-district/23UB,Cheltenham Borough Council,Community Welfare Grants,14041100,4570,Gloucestershire Association for Voluntary & Community Action (GAVCA),R6280-GBD001,Grants,20/11/2015,16500.00
http://statistics.data.gov.uk/id/local-authority-district/23UB,Cheltenham Borough Council,Land Charges,14040859,1800375716,Gloucestershire County Council,R4401-BUC004,Services - Fees and Charges,13/11/2015,9168.87
http://statistics.data.gov.uk/id/local-authority-district/23UB,Cheltenham Borough Council,Land Charges,14040973,1800376214,Gloucestershire County Council,R4401-BUC004,Services - Fees and Charges,13/11/2015,2620.00
http://statistics.data.gov.uk/id/local-authority-district/23UB,Cheltenham Borough Council,Pensions Backfunding,14041275,800006184,GLOUCESTERSHIRE COUNTY COUNCIL (LGPS ONLY),R1301-SUP038,Enhanced Pension,27/11/2015,16821.24
http://statistics.data.gov.uk/id/local-authority-district/23UB,Cheltenham Borough Council,Pensions Backfunding,14041050,hra pension contribution in lieu of funding defici,GLOUCESTERSHIRE COUNTY COUNCIL (LGPS ONLY),R1901-SUP038,Contribution to Pension Fund,20/11/2015,240000.00
http://statistics.data.gov.uk/id/local-authority-district/23UB,Cheltenham Borough Council,Cheltenham Depot,14040594,2781,Greenway Partnership Limited T/A GPL Building Services,R2062-ADB103,R & M of Build Cyclical Electrical Remedials,06/11/2015,2645.00
http://statistics.data.gov.uk/id/local-authority-district/23UB,Cheltenham Borough Council,Xmas in Cheltenham,14040586,2999,Greenway Partnership Limited T/A GPL Building Services,R2083-ECD101,R&M of Build - Routine,06/11/2015,7540.00
http://statistics.data.gov.uk/id/local-authority-district/23UB,Cheltenham Borough Council,Car Parks - Off Street R&M,14041095,3011,Greenway Partnership Limited T/A GPL Building Services,R2004-CPK101,R & M of Build Programmed,27/11/2015,2088.00
http://statistics.data.gov.uk/id/local-authority-district/23UB,Cheltenham Borough Council,"Cemetery, Crematorium and Churchyards",14041069,3012,Greenway Partnership Limited T/A GPL Building Services,R4401-CCM001,Services - Fees and Charges,20/11/2015,865.00
http://statistics.data.gov.uk/id/local-authority-district/23UB,Cheltenham Borough Council,Parks & Gardens Operations,14041070,3030,Greenway Partnership Limited T/A GPL Building Services,R2007-OPS001,R & M of Plant Contracts,27/11/2015,2779.50
http://statistics.data.gov.uk/id/local-authority-district/23UB,Cheltenham Borough Council,Parks & Gardens Operations,14041071,3031,Greenway Partnership Limited T/A GPL Building Services,R2007-OPS001,R & M of Plant Contracts,27/11/2015,2539.80
http://statistics.data.gov.uk/id/local-authority-district/23UB,Cheltenham Borough Council,Cheltenham Depot,14041079,3032,Greenway Partnership Limited T/A GPL Building Services,R2043-ADB103,R & M of Build Drain Cleaning,27/11/2015,1378.00
http://statistics.data.gov.uk/id/local-authority-district/23UB,Cheltenham Borough Council,Cheltenham Depot,14041078,3033,Greenway Partnership Limited T/A GPL Building Services,R2043-ADB103,R & M of Build Drain Cleaning,27/11/2015,532.42
http://statistics.data.gov.uk/id/local-authority-district/23UB,Cheltenham Borough Council,Xmas in Cheltenham,14041064,3052,Greenway Partnership Limited T/A GPL Building Services,R2004-ECD101,R & M of Build Programmed,20/11/2015,5057.00
http://statistics.data.gov.uk/id/local-authority-district/23UB,Cheltenham Borough Council,Registration of Electors,14040902,9363,Halarose Limited,R4000-ELE001,Equipment Purchase,06/11/2015,1140.00
http://statistics.data.gov.uk/id/local-authority-district/23UB,Cheltenham Borough Council,Flood Risk Management,14040527,39361,Halcrow Group Limited,R5001-FRM101,TPP - Major External Contractors,06/11/2015,6774.98
http://statistics.data.gov.uk/id/local-authority-district/23UB,Cheltenham Borough Council,Option Appraisal Voids,14041268,11102,Harris & Graves Scaffolding Limited,C1107-CAH002,Building Works,27/11/2015,1460.00
http://statistics.data.gov.uk/id/local-authority-district/23UB,Cheltenham Borough Council,Joint Core Strategy,14040558,HDH 073,HDH Planning & Development Limited,R4400-PLP101,Services - Professional Fees,06/11/2015,9396.90
http://statistics.data.gov.uk/id/local-authority-district/23UB,Cheltenham Borough Council,Art Gallery & Museum Repairs & Maintenance,14040758,15221,Hellion Environmental Limited,R2080-CUL117,Mechanical Services,06/11/2015,520.84
http://statistics.data.gov.uk/id/local-authority-district/23UB,Cheltenham Borough Council,Recreation Centre Repairs & Maintenance,14040744,15235,Hellion Environmental Limited,R2080-REC111,Mechanical Services,06/11/2015,545.63
http://statistics.data.gov.uk/id/local-authority-district/23UB,Cheltenham Borough Council,Community Alarms,14040605,SIAL/00017475,Herefordshire Housing Limited,R4401-SPP002,Services - Fees and Charges,06/11/2015,13304.72
http://statistics.data.gov.uk/id/local-authority-district/23UB,Cheltenham Borough Council,Supervision and Management,14040621,SIAL/00017527,Herefordshire Housing Limited,R4003-HRA110,Tools & Equipment - R & M,20/11/2015,543.40
http://statistics.data.gov.uk/id/local-authority-district/23UB,Cheltenham Borough Council,Supervision and Management,14040612,SIAL/00017581,Herefordshire Housing Limited,R4003-HRA110,Tools & Equipment - R & M,20/11/2015,514.80
http://statistics.data.gov.uk/id/local-authority-district/23UB,Cheltenham Borough Council,General Fund Balance Sheet,14040988,CISDEDUCT0610-051115,HMRC (CBC - CIS),B6220-BAL100,CIS Deductions Control (reallocated),17/11/2015,1845.37
http://statistics.data.gov.uk/id/local-authority-district/23UB,Cheltenham Borough Council,Community Welfare Grants,14040829,KPW4,Holst Birthplace Museum,R6280-GBD001,Grants,06/11/2015,3750.00
http://statistics.data.gov.uk/id/local-authority-district/23UB,Cheltenham Borough Council,Repairs and Maintenance,14040923,150255AA7,Ian Williams Limited,R2060-HRA100,R & M of Build Cyclical Painting Communal Areas,20/11/2015,17445.55
http://statistics.data.gov.uk/id/local-authority-district/23UB,Cheltenham Borough Council,Built Environment,14040270,I52937,Ice Creates Limited,R4411-SUP040,Consultancy Fees,06/11/2015,725.00
http://statistics.data.gov.uk/id/local-authority-district/23UB,Cheltenham Borough Council,Window & Door Renewals,14041054,7019,Inprova Group Limited,C1107-CAH017,Building Works,20/11/2015,5500.00
http://statistics.data.gov.uk/id/local-authority-district/23UB,Cheltenham Borough Council,Corporate Management,14041148,15001662 md 54580,IRG Advisors LLP,R4400-COR001,Services - Professional Fees,27/11/2015,5000.00
http://statistics.data.gov.uk/id/local-authority-district/23UB,Cheltenham Borough Council,Development Control - Applications,14041147,inv100930,It Does...Limited,R4400-DEV001,Services - Professional Fees,27/11/2015,1650.00
http://statistics.data.gov.uk/id/local-authority-district/23UB,Cheltenham Borough Council,Sports & Open Spaces Operations,14041176,15/052,J P North (Farmer),R2071-OPS002,Open Spaces and Grassed Areas,27/11/2015,1000.00
http://statistics.data.gov.uk/id/local-authority-district/23UB,Cheltenham Borough Council,Joint Core Strategy,14040922,86,Jim Claydon - Planner,R4400-PLP101,Services - Professional Fees,13/11/2015,678.15
http://statistics.data.gov.uk/id/local-authority-district/23UB,Cheltenham Borough Council,Development costs - Swindon Road,14041218,EN002-0193088,Jones Lang Lasalle Limited,C1107-CAH050,Building Works,27/11/2015,650.00
http://statistics.data.gov.uk/id/local-authority-district/23UB,Cheltenham Borough Council,Development costs - Garage Sites 2a,14041217,EN002-0193089,Jones Lang Lasalle Limited,C1107-CAH052,Building Works,27/11/2015,1300.00
http://statistics.data.gov.uk/id/local-authority-district/23UB,Cheltenham Borough Council,Conservation,14040900,151001,Lewis Advisory Services Limited,R1100-PLP004,Agency Staff,06/11/2015,1560.00
http://statistics.data.gov.uk/id/local-authority-district/23UB,Cheltenham Borough Council,Repairs and Maintenance,14040569,1123773,Liberty Gas Group,R2040-HRA100,R & M of Build Central Heating,06/11/2015,3810.73
http://statistics.data.gov.uk/id/local-authority-district/23UB,Cheltenham Borough Council,Repairs and Maintenance,14040569,1123773,Liberty Gas Group,R2040-HRA100,R & M of Build Central Heating,06/11/2015,37993.09
http://statistics.data.gov.uk/id/local-authority-district/23UB,Cheltenham Borough Council,Sports & Open Spaces Operations,14041270,1308154,LKQ Coatings Limited,R4010-OPS002,Materials - Other Materials,27/11/2015,963.36
http://statistics.data.gov.uk/id/local-authority-district/23UB,Cheltenham Borough Council,Parks & Gardens Operations,14041160,2609,Lushglen Exterior Furniture Renovation Services,R2075-OPS001,Grounds Maintenance - Contract,27/11/2015,625.00
http://statistics.data.gov.uk/id/local-authority-district/23UB,Cheltenham Borough Council,Allotments,14041053,20233,Mark Wroot Agricultural & Garden Services,C1102-CAP501,Landscaping,20/11/2015,3810.00
http://statistics.data.gov.uk/id/local-authority-district/23UB,Cheltenham Borough Council,Sports & Open Spaces Operations,14040906,4764LC,Martin Surgey T/A Lifechart,R2004-OPS002,R & M of Build Programmed,06/11/2015,1097.00
http://statistics.data.gov.uk/id/local-authority-district/23UB,Cheltenham Borough Council,Prince of Wales Stadium Repairs & Maintenance,14040595,10555,Massie Electrics Limited,R2004-REC112,R & M of Build Programmed,06/11/2015,3406.00
http://statistics.data.gov.uk/id/local-authority-district/23UB,Cheltenham Borough Council,Recreation Centre Repairs & Maintenance,14040598,10559,Massie Electrics Limited,R2062-REC111,R & M of Build Cyclical Electrical Remedials,06/11/2015,717.05
http://statistics.data.gov.uk/id/local-authority-district/23UB,Cheltenham Borough Council,Car Parks - Off Street R&M,14040871,1508,Meadowside Tree Care,R2083-CPK101,R&M of Build - Routine,06/11/2015,900.00
http://statistics.data.gov.uk/id/local-authority-district/23UB,Cheltenham Borough Council,"Cemetery, Crematorium and Churchyards",14040901,301015,Mr J Sureda,R4401-CCM001,Services - Fees and Charges,06/11/2015,806.62
http://statistics.data.gov.uk/id/local-authority-district/23UB,Cheltenham Borough Council,Joint Core Strategy,14040810,93625,Nathaniel Lichfield & Partners,R4400-PLP101,Services - Professional Fees,06/11/2015,4853.04
http://statistics.data.gov.uk/id/local-authority-district/23UB,Cheltenham Borough Council,Royal Well Bus Node,14040845,2177,Nick Bevan Consulting Limited,R2004-PUT101,R & M of Build Programmed,06/11/2015,1062.00
http://statistics.data.gov.uk/id/local-authority-district/23UB,Cheltenham Borough Council,Internal Improvements,14040529,9073,NKS Contracts (Central) Limited,C1107-CAH004,Building Works,06/11/2015,30572.01
http://statistics.data.gov.uk/id/local-authority-district/23UB,Cheltenham Borough Council,War Memorials,14040932,1532,Odgers Conservation Consultants Limited,R4400-CUL002,Services - Professional Fees,06/11/2015,2400.00
http://statistics.data.gov.uk/id/local-authority-district/23UB,Cheltenham Borough Council,"Cemetery, Crematorium and Churchyards",14041310,B8552,Odlings Limited T/A The Columbaria Company,R4011-CCM001,Goods For Resale,27/11/2015,1065.00
http://statistics.data.gov.uk/id/local-authority-district/23UB,Cheltenham Borough Council,CCTV,14040633,608044,OpenView Security Solutions Limited,R4003-CCT001,Tools & Equipment - R & M,06/11/2015,1419.17
http://statistics.data.gov.uk/id/local-authority-district/23UB,Cheltenham Borough Council,Repairs and Maintenance,14040963,O0388917,Orbis Protect Limited,R2012-HRA100,R & M of Build Standby and Call Out,13/11/2015,1127.03
http://statistics.data.gov.uk/id/local-authority-district/23UB,Cheltenham Borough Council,Cheltenham Depot,14040847,2117001,P W Commercial Co Limited T/A Printwaste,R2085-ADB103,R&M of Fix & Fit - Internal,06/11/2015,7000.00
http://statistics.data.gov.uk/id/local-authority-district/23UB,Cheltenham Borough Council,Car Parks - Off Street Operations,14040724,UK82401,Parkeon Limited,R4401-CPK001,Services - Fees and Charges,27/11/2015,1924.12
http://statistics.data.gov.uk/id/local-authority-district/23UB,Cheltenham Borough Council,Car Parks - Off Street Operations,14040731,UK82707,Parkeon Limited,R4401-CPK001,Services - Fees and Charges,27/11/2015,670.25
http://statistics.data.gov.uk/id/local-authority-district/23UB,Cheltenham Borough Council,Cheltenham Municipal Offices,14038749,62665947,Personnel Hygiene Services (PHS Group),R2700-ADB101,Contract Cleaning,06/11/2015,3490.54
http://statistics.data.gov.uk/id/local-authority-district/23UB,Cheltenham Borough Council,Public Conveniences R&M,14038739,62668309,Personnel Hygiene Services (PHS Group),R2700-REG119,Contract Cleaning,06/11/2015,849.51
http://statistics.data.gov.uk/id/local-authority-district/23UB,Cheltenham Borough Council,Public Conveniences R&M,14038740,62668310,Personnel Hygiene Services (PHS Group),R2700-REG119,Contract Cleaning,06/11/2015,1178.93
http://statistics.data.gov.uk/id/local-authority-district/23UB,Cheltenham Borough Council,Public Conveniences R&M,14038741,62668311,Personnel Hygiene Services (PHS Group),R2700-REG119,Contract Cleaning,06/11/2015,825.36
http://statistics.data.gov.uk/id/local-authority-district/23UB,Cheltenham Borough Council,Public Conveniences R&M,14038742,62668312,Personnel Hygiene Services (PHS Group),R2700-REG119,Contract Cleaning,06/11/2015,909.81
http://statistics.data.gov.uk/id/local-authority-district/23UB,Cheltenham Borough Council,"Cemetery, Crematorium and Churchyards",14039504,62669926,Personnel Hygiene Services (PHS Group),R2700-CCM001,Contract Cleaning,06/11/2015,673.48
http://statistics.data.gov.uk/id/local-authority-district/23UB,Cheltenham Borough Council,Public Conveniences,14039502,62772845,Personnel Hygiene Services (PHS Group),R2700-REG019,Contract Cleaning,06/11/2015,537.38
http://statistics.data.gov.uk/id/local-authority-district/23UB,Cheltenham Borough Council,Recreation Centre Repairs & Maintenance,14040950,63066240,Personnel Hygiene Services (PHS Group),R2083-REC111,R&M of Build - Routine,13/11/2015,982.80
http://statistics.data.gov.uk/id/local-authority-district/23UB,Cheltenham Borough Council,Recreation Centre Repairs & Maintenance,14040817,63067026,Personnel Hygiene Services (PHS Group),R2083-REC111,R&M of Build - Routine,06/11/2015,6443.00
http://statistics.data.gov.uk/id/local-authority-district/23UB,Cheltenham Borough Council,Recreation Centre Repairs & Maintenance,14041065,24144,Phoenix Lifting Systems Limited,R2004-REC111,R & M of Build Programmed,27/11/2015,2281.00
http://statistics.data.gov.uk/id/local-authority-district/23UB,Cheltenham Borough Council,Postal Services,14040935,52390053,Pitney Bowes - Postage by Phone,R4521-SUP024,Postages - franking machine,06/11/2015,5000.00
http://statistics.data.gov.uk/id/local-authority-district/23UB,Cheltenham Borough Council,Cemetery & Crematorium Repairs & Maintenance,14040846,3248,PJ Combustion Solutions Limited,R2083-CCM111,R&M of Build - Routine,06/11/2015,1355.00
http://statistics.data.gov.uk/id/local-authority-district/23UB,Cheltenham Borough Council,Cemetery & Crematorium Repairs & Maintenance,14041194,3254,PJ Combustion Solutions Limited,R4003-CCM111,Tools & Equipment - R & M,27/11/2015,697.00
http://statistics.data.gov.uk/id/local-authority-district/23UB,Cheltenham Borough Council,Cemetery & Crematorium Repairs & Maintenance,14041193,3267,PJ Combustion Solutions Limited,R4003-CCM111,Tools & Equipment - R & M,27/11/2015,2136.00
http://statistics.data.gov.uk/id/local-authority-district/23UB,Cheltenham Borough Council,Cemetery & Crematorium Repairs & Maintenance,14041074,3269,PJ Combustion Solutions Limited,R2083-CCM111,R&M of Build - Routine,27/11/2015,26780.00
http://statistics.data.gov.uk/id/local-authority-district/23UB,Cheltenham Borough Council,Cemetery & Crematorium Repairs & Maintenance,14041066,3273,PJ Combustion Solutions Limited,R2083-CCM111,R&M of Build - Routine,27/11/2015,3480.00
http://statistics.data.gov.uk/id/local-authority-district/23UB,Cheltenham Borough Council,Joint Core Strategy,14040939,PINF746260,Randstad Employment Bureau Limited,R4401-PLP101,Services - Fees and Charges,13/11/2015,957.00
http://statistics.data.gov.uk/id/local-authority-district/23UB,Cheltenham Borough Council,Joint Core Strategy,14040998,PINF749936,Randstad Employment Bureau Limited,R4400-PLP101,Services - Professional Fees,13/11/2015,761.25
http://statistics.data.gov.uk/id/local-authority-district/23UB,Cheltenham Borough Council,Joint Core Strategy,14040999,PINF749937,Randstad Employment Bureau Limited,R4400-PLP101,Services - Professional Fees,13/11/2015,652.50
http://statistics.data.gov.uk/id/local-authority-district/23UB,Cheltenham Borough Council,Joint Core Strategy,14041000,PINF749947,Randstad Employment Bureau Limited,R4400-PLP101,Services - Professional Fees,13/11/2015,652.50
http://statistics.data.gov.uk/id/local-authority-district/23UB,Cheltenham Borough Council,Joint Core Strategy,14041002,PINF749949,Randstad Employment Bureau Limited,R4400-PLP101,Services - Professional Fees,13/11/2015,652.50
http://statistics.data.gov.uk/id/local-authority-district/23UB,Cheltenham Borough Council,Joint Core Strategy,14041004,PINF749951,Randstad Employment Bureau Limited,R4400-PLP101,Services - Professional Fees,13/11/2015,1087.50
http://statistics.data.gov.uk/id/local-authority-district/23UB,Cheltenham Borough Council,Gloucestershire Airport,14041282,20830141,Reed Business Information Limited,R4317-AIR101,Non Staff Advertising,27/11/2015,1290.00
http://statistics.data.gov.uk/id/local-authority-district/23UB,Cheltenham Borough Council,Community Alarms,14040839,54088,Regional Publications Limited,R4014-SPP002,Marketing,06/11/2015,695.00
http://statistics.data.gov.uk/id/local-authority-district/23UB,Cheltenham Borough Council,Printing Services,14041313,100374044,Ricoh UK Limited,R4304-SUP022,Photocopier Operating Lease,27/11/2015,4728.56
http://statistics.data.gov.uk/id/local-authority-district/23UB,Cheltenham Borough Council,Cemetery & Crematorium Repairs & Maintenance,14040844,1054,Ridgetech Limited,R2083-CCM111,R&M of Build - Routine,06/11/2015,510.00
http://statistics.data.gov.uk/id/local-authority-district/23UB,Cheltenham Borough Council,Council Tax Collection,14040742,9050728405,Royal Mail,R4521-LTC001,Postages - franking machine,06/11/2015,829.30
http://statistics.data.gov.uk/id/local-authority-district/23UB,Cheltenham Borough Council,Individual Electoral Registration,14040740,9050772743,Royal Mail,R4521-ELE010,Postages - franking machine,06/11/2015,821.14
http://statistics.data.gov.uk/id/local-authority-district/23UB,Cheltenham Borough Council,Individual Electoral Registration,14040738,9050816340,Royal Mail,R4521-ELE010,Postages - franking machine,06/11/2015,662.43
http://statistics.data.gov.uk/id/local-authority-district/23UB,Cheltenham Borough Council,Council Tax Collection,14040738,9050816340,Royal Mail,R4521-LTC001,Postages - franking machine,06/11/2015,560.81
http://statistics.data.gov.uk/id/local-authority-district/23UB,Cheltenham Borough Council,Registration of Electors,14040736,9050828746,Royal Mail,R4520-ELE001,Postages - stamps,06/11/2015,1334.29
http://statistics.data.gov.uk/id/local-authority-district/23UB,Cheltenham Borough Council,Council Tax Collection,14041104,9050956279,Royal Mail,R4521-LTC001,Postages - franking machine,27/11/2015,921.89
http://statistics.data.gov.uk/id/local-authority-district/23UB,Cheltenham Borough Council,Sandford Lido car park,14041068,sandford lido oct 15,Sandford Parks Lido (Trading) Limited,R5003-CPK103,TPP - Agency Fees,20/11/2015,23011.43
http://statistics.data.gov.uk/id/local-authority-district/23UB,Cheltenham Borough Council,Sandford Lido car park,14041068,sandford lido oct 15,Sandford Parks Lido (Trading) Limited,R5003-CPK103,TPP - Agency Fees,20/11/2015,-1683.33
http://statistics.data.gov.uk/id/local-authority-district/23UB,Cheltenham Borough Council,Repairs and Maintenance,14040971,681,SAS EPC,R2018-HRA100,R & M of Build Voids Energy Performance Certificates,13/11/2015,668.00
http://statistics.data.gov.uk/id/local-authority-district/23UB,Cheltenham Borough Council,Development costs - Garage Sites 2a,14040929,301015,Scott Surveying,C1107-CAH052,Building Works,13/11/2015,2740.00
http://statistics.data.gov.uk/id/local-authority-district/23UB,Cheltenham Borough Council,Car Park Income Collection,14041304,519528,Security Plus+ Limited,R4435-CPK002,Cash Collection Contract,27/11/2015,839.13
http://statistics.data.gov.uk/id/local-authority-district/23UB,Cheltenham Borough Council,Environmental Health General,14040926,00809-13965572/CI,Selim Smith & Co Funeral Directors (Dignity Funerals Limited),R4433-REG001,Burial Fees - National Assitance Act,13/11/2015,794.00
http://statistics.data.gov.uk/id/local-authority-district/23UB,Cheltenham Borough Council,Environmental Health General,14040909,00809-13971492/CI,Selim Smith & Co Funeral Directors (Dignity Funerals Limited),R4433-REG001,Burial Fees - National Assitance Act,13/11/2015,989.00
http://statistics.data.gov.uk/id/local-authority-district/23UB,Cheltenham Borough Council,Recreation Centre Repairs & Maintenance,14041262,778130561,Severn Trent Water,R2402-REC111,Sewerage and Environmental Services,27/11/2015,1691.00
http://statistics.data.gov.uk/id/local-authority-district/23UB,Cheltenham Borough Council,Recreation Centre Repairs & Maintenance,14040879,844155398,Severn Trent Water,R2402-REC111,Sewerage and Environmental Services,06/11/2015,2815.77
http://statistics.data.gov.uk/id/local-authority-district/23UB,Cheltenham Borough Council,Recreation Centre Repairs & Maintenance,14040994,871121218,Severn Trent Water,R2402-REC111,Sewerage and Environmental Services,13/11/2015,1691.00
http://statistics.data.gov.uk/id/local-authority-district/23UB,Cheltenham Borough Council,Prince of Wales Stadium Repairs & Maintenance,14040882,905098561,Severn Trent Water,R2043-REC112,R & M of Build Drain Cleaning,06/11/2015,1983.85
http://statistics.data.gov.uk/id/local-authority-district/23UB,Cheltenham Borough Council,Flood Risk Management,14040562,5505,Slimbridge Wetland Plants Limited T/A JPR Environmental,R5001-FRM101,TPP - Major External Contractors,06/11/2015,14581.55
http://statistics.data.gov.uk/id/local-authority-district/23UB,Cheltenham Borough Council,War Memorials,14040862,6248,Snape Contracting Limited (Snapecall),R2004-CUL002,R & M of Build Programmed,13/11/2015,1493.46
http://statistics.data.gov.uk/id/local-authority-district/23UB,Cheltenham Borough Council,Income and Expenditure on Investment Properties and Changes in Their Fair Value,14040949,375,Sparkes Home and Garden Limited,R2083-FIE040,R&M of Build - Routine,13/11/2015,630.00
http://statistics.data.gov.uk/id/local-authority-district/23UB,Cheltenham Borough Council,Cemetery & Crematorium Repairs & Maintenance,14040679,4883,System Six Design & Build,R2004-CCM111,R & M of Build Programmed,06/11/2015,1847.00
http://statistics.data.gov.uk/id/local-authority-district/23UB,Cheltenham Borough Council,Shopmobility,14041008,004924/a,System Six Design & Build,R2077-PUT102,R&M of Build - internal structures,13/11/2015,6033.00
http://statistics.data.gov.uk/id/local-authority-district/23UB,Cheltenham Borough Council,Adaptations for the Disabled (CBC),14041021,REDACTED,T P G Disable Aids Limited (TPG),C1107-CAH028,Building Works,17/11/2015,1655.00
http://statistics.data.gov.uk/id/local-authority-district/23UB,Cheltenham Borough Council,Income and Expenditure on Investment Properties and Changes in Their Fair Value,14040816,DEBT104342,Tewkesbury Borough Council,R4400-FIE040,Services - Professional Fees,06/11/2015,1184.00
http://statistics.data.gov.uk/id/local-authority-district/23UB,Cheltenham Borough Council,Legal,14041169,DEBT104385,Tewkesbury Borough Council,R4401-SUP004,Services - Fees and Charges,27/11/2015,126112.34
http://statistics.data.gov.uk/id/local-authority-district/23UB,Cheltenham Borough Council,Civic Events,14040997,70013971,The Cheltenham Trust,R6280-DRM012,Grants,13/11/2015,2000.00
http://statistics.data.gov.uk/id/local-authority-district/23UB,Cheltenham Borough Council,Cultural - Service Management and Support Services,14041256,70014440,The Cheltenham Trust,R1006-CSM001,Salaries - Superannuation,27/11/2015,73101.60
http://statistics.data.gov.uk/id/local-authority-district/23UB,Cheltenham Borough Council,General Fund Balance Sheet,14040983,8.50028E+11,The Midcounties Co-operative,B6170-BAL100,Short Term Revenue Creditors (incl RIA) - Other entities and individuals,20/11/2015,2650.00
http://statistics.data.gov.uk/id/local-authority-district/23UB,Cheltenham Borough Council,Development Control - Applications,14040861,1073790,The Oyster Partnership Limited,R1100-DEV001,Agency Staff,06/11/2015,1508.70
http://statistics.data.gov.uk/id/local-authority-district/23UB,Cheltenham Borough Council,Development Control - Applications,14040978,1074792,The Oyster Partnership Limited,R1100-DEV001,Agency Staff,13/11/2015,1218.76
http://statistics.data.gov.uk/id/local-authority-district/23UB,Cheltenham Borough Council,Disabled Facility Grants,14041067,REDACTED,The Surveying Practice - Client Account,C5000-CAP221,Grants,20/11/2015,13466.86
http://statistics.data.gov.uk/id/local-authority-district/23UB,Cheltenham Borough Council,Adaptations for the Disabled (CBC),14041020,REDACTED,The Surveying Practice - Client Account,C1107-CAH028,Building Works,17/11/2015,7460.67
http://statistics.data.gov.uk/id/local-authority-district/23UB,Cheltenham Borough Council,Disabled Facility Grants,14040575,REDACTED,The Surveying Practice - Client Account,C5000-CAP221,Grants,06/11/2015,5963.35
http://statistics.data.gov.uk/id/local-authority-district/23UB,Cheltenham Borough Council,Adaptations for the Disabled (CBC),14041019,REDACTED,The Surveying Practice - Client Account,C1107-CAH028,Building Works,17/11/2015,21641.10
http://statistics.data.gov.uk/id/local-authority-district/23UB,Cheltenham Borough Council,Disabled Facility Grants,14041017,REDACTED,The Surveying Practice - Client Account,C5000-CAP221,Grants,17/11/2015,25032.40
http://statistics.data.gov.uk/id/local-authority-district/23UB,Cheltenham Borough Council,Disabled Facility Grants,14041018,REDACTED,The Surveying Practice - Client Account,C5000-CAP221,Grants,17/11/2015,6108.03
http://statistics.data.gov.uk/id/local-authority-district/23UB,Cheltenham Borough Council,Disabled Facility Grants,14040574,REDACTED,The Surveying Practice - Client Account,C5000-CAP221,Grants,06/11/2015,6250.75
http://statistics.data.gov.uk/id/local-authority-district/23UB,Cheltenham Borough Council,Repairs and Maintenance,14040974,INV/50287506,Tunstall Healthcare (UK) Limited,R4401-HRA100,Services - Fees and Charges,27/11/2015,537.60
http://statistics.data.gov.uk/id/local-authority-district/23UB,Cheltenham Borough Council,Parks & Gardens Operations,14040852,60007077,Ubico Limited,R3001-OPS001,Diesel,06/11/2015,964.22
http://statistics.data.gov.uk/id/local-authority-district/23UB,Cheltenham Borough Council,ICT,14040856,290931-090,Virgin Media Business,R4514-SUP005,Comms - Telephone Rental/Service Charges,13/11/2015,17415.62
http://statistics.data.gov.uk/id/local-authority-district/23UB,Cheltenham Borough Council,CBH Intercompany Account,14040856,290931-090,Virgin Media Business,R4514-HLD101,Comms - Telephone Rental/Service Charges,13/11/2015,4653.68
http://statistics.data.gov.uk/id/local-authority-district/23UB,Cheltenham Borough Council,"Cemetery, Crematorium and Churchyards",14040856,290931-090,Virgin Media Business,R4514-CCM001,Comms - Telephone Rental/Service Charges,13/11/2015,4646.70
http://statistics.data.gov.uk/id/local-authority-district/23UB,Cheltenham Borough Council,CBH Intercompany Account,14041312,506761601/1115,Virgin Media Business,R4504-HLD101,Comms - Telephone Rental (Expense claims),27/11/2015,3302.65
http://statistics.data.gov.uk/id/local-authority-district/23UB,Cheltenham Borough Council,CBH Intercompany Account,14039809,912686-067,Virgin Media Business,R4548-HLD101,IT - Cabling and Network,13/11/2015,7500.00
http://statistics.data.gov.uk/id/local-authority-district/23UB,Cheltenham Borough Council,ICT,14040857,912686-081,Virgin Media Business,R4514-SUP005,Comms - Telephone Rental/Service Charges,13/11/2015,35270.93
http://statistics.data.gov.uk/id/local-authority-district/23UB,Cheltenham Borough Council,Bulky Household Waste,14040903,24/15,Vision 21,R4401-WST004,Services - Fees and Charges,27/11/2015,3481.25
http://statistics.data.gov.uk/id/local-authority-district/23UB,Cheltenham Borough Council,Sports & Open Spaces Repairs & Maintenance,14040865,2262,West Midlands Services Limited,R2004-OPS122,R & M of Build Programmed,06/11/2015,706.20
http://statistics.data.gov.uk/id/local-authority-district/23UB,Cheltenham Borough Council,"Cemetery, Crematorium and Churchyards",14041134,122,Woodcraft UK,R4011-CCM001,Goods For Resale,27/11/2015,640.00
http://statistics.data.gov.uk/id/local-authority-district/23UB,Cheltenham Borough Council,"Cemetery, Crematorium and Churchyards",14041291,88,Woodcraft UK,R4011-CCM001,Goods For Resale,27/11/2015,592.00
http://statistics.data.gov.uk/id/local-authority-district/23UB,Cheltenham Borough Council,Civic Pride - Promenade Pedstrianised Area,14040953,200915,X2 Connect Limited,C1100-CAP152,Construction,13/11/2015,7202.32
http://statistics.data.gov.uk/id/local-authority-district/23UB,Cheltenham Borough Council,ICT,14041138,5,ASCILLOS LIMITED,R4400-SUP005,Services - Professional Fees,20/11/2015,1875.00
http://statistics.data.gov.uk/id/local-authority-district/23UB,Cheltenham Borough Council,Community Welfare Grants,14041031,Comm Pride- Sacred Hearts,CDTR Re Sacred Hearts Parish Hall,R6280-GBD001,Grants,20/11/2015,2000.00
http://statistics.data.gov.uk/id/local-authority-district/23UB,Cheltenham Borough Council,Community Development,14040960,PPSS/1046,DR JANE MONCKTON SMITH,R4401-COM001,Services - Fees and Charges,13/11/2015,1200.00
http://statistics.data.gov.uk/id/local-authority-district/23UB,Cheltenham Borough Council,Building Control - Fee Earning Work,14041036,Expenses (REDACTED),REDACTED,R1500-BUC001,Relocation Expenses,20/11/2015,1312.77
http://statistics.data.gov.uk/id/local-authority-district/23UB,Cheltenham Borough Council,Cheltenham Depot,14040568,INV-0018,JS Security Limited,R2705-ADB103,Security Systems,06/11/2015,651.00
http://statistics.data.gov.uk/id/local-authority-district/23UB,Cheltenham Borough Council,Rent Control,14041197,RENT REFUND (REDACTED),REDACTED,R9910-HRA900,Refund of Overpiad Rent,27/11/2015,1156.28
http://statistics.data.gov.uk/id/local-authority-district/23UB,Cheltenham Borough Council,Rent Control,14040897,RENT REFUND (REDACTED),REDACTED,R9910-HRA900,Refund of Overpiad Rent,06/11/2015,4603.92
http://statistics.data.gov.uk/id/local-authority-district/23UB,Cheltenham Borough Council,Supervision and Management,14040570,HOMELOSS REDACTED,REDACTED,R2206-HRA110,Removal Expenses,06/11/2015,4900.00
http://statistics.data.gov.uk/id/local-authority-district/23UB,Cheltenham Borough Council,Rent Control,14041058,rent refund (REDACTED),REDACTED,R9910-HRA900,Refund of Overpiad Rent,20/11/2015,508.18
http://statistics.data.gov.uk/id/local-authority-district/23UB,Cheltenham Borough Council,Rent Control,14041189,RENT REFUND (REDACTED),REDACTED,R9910-HRA900,Refund of Overpiad Rent,27/11/2015,1154.88
http://statistics.data.gov.uk/id/local-authority-district/23UB,Cheltenham Borough Council,Abandoned Vehicles,14040975,Abandoned Vehicle Payment (REDACTED),REDACTED,R4401-STC011,Services - Fees and Charges,13/11/2015,500.00
http://statistics.data.gov.uk/id/local-authority-district/23UB,Cheltenham Borough Council,Rent Control,14041195,RENT REFUND (REDACTED),REDACTED,R9910-HRA900,Refund of Overpiad Rent,27/11/2015,520.10
http://statistics.data.gov.uk/id/local-authority-district/23UB,Cheltenham Borough Council,Rent Control,14041015,RENT REFUND (REDCATED),REDACTED,R9910-HRA900,Refund of Overpiad Rent,20/11/2015,714.94
http://statistics.data.gov.uk/id/local-authority-district/23UB,Cheltenham Borough Council,Building Control - Fee Earning Work,14041025,Refund Planning Application,REDACTED,R9301-BUC001,Fees - Building Regulations,20/11/2015,1891.67
http://statistics.data.gov.uk/id/local-authority-district/23UB,Cheltenham Borough Council,Community Welfare Grants,14041032,94,REDACTED,R6280-GBD001,Grants,20/11/2015,1500.00
http://statistics.data.gov.uk/id/local-authority-district/23UB,Cheltenham Borough Council,Supervision and Management,10016730,Direct Debit, ART GALLERY,R2101-CUL117,Gas,13/10/2015,2033.42
http://statistics.data.gov.uk/id/local-authority-district/23UB,Cheltenham Borough Council,Car Parks - Off Street Operations,10016751,Direct Debit, POPES CL 1089833,R2101-HRA110,Gas,05/10/2015,501.28
http://statistics.data.gov.uk/id/local-authority-district/23UB,Cheltenham Borough Council,"Cemetery, Crematorium and Churchyards",10016751,Direct Debit,CAR PK REGENT ARCADE,R2100-CPK001,Electricity,05/10/2015,528.58
http://statistics.data.gov.uk/id/local-authority-district/23UB,Cheltenham Borough Council,Pittville Pump Room Repairs & Maintenance,10016751,Direct Debit,CEMETERY,R2100-CCM001,Electricity,05/10/2015,581.58
http://statistics.data.gov.uk/id/local-authority-district/23UB,Cheltenham Borough Council,Car Parks - Off Street Operations,10016751,Direct Debit,PPR,R2100-CUL113,Electricity,05/10/2015,818.11
http://statistics.data.gov.uk/id/local-authority-district/23UB,Cheltenham Borough Council,Art Gallery & Museum Repairs & Maintenance,10016751,Direct Debit,CAR PK GROSVENOR TERR,R2100-CPK001,Electricity,05/10/2015,828.35
http://statistics.data.gov.uk/id/local-authority-district/23UB,Cheltenham Borough Council,Art Gallery & Museum Repairs & Maintenance,10016751,Direct Debit,AGM CLARENCE ST,R2100-CUL117,Electricity,05/10/2015,881.72
http://statistics.data.gov.uk/id/local-authority-district/23UB,Cheltenham Borough Council,Arle Road Nursery Operations,10016751,Direct Debit,AGM,R2100-CUL117,Electricity,05/10/2015,1093.37
http://statistics.data.gov.uk/id/local-authority-district/23UB,Cheltenham Borough Council,Supervision and Management,10016751,Direct Debit, ARLE NURSERY,R2101-OPS101,Gas,05/10/2015,513.57
http://statistics.data.gov.uk/id/local-authority-district/23UB,Cheltenham Borough Council,Supervision and Management,10016751,Direct Debit, COOPERS CT 1089832,R2101-HRA110,Gas,05/10/2015,1201.89
http://statistics.data.gov.uk/id/local-authority-district/23UB,Cheltenham Borough Council,Art Gallery & Museum Repairs & Maintenance,10016751,Direct Debit, GOLDFOOT HSE 1089834,R2101-HRA110,Gas,05/10/2015,1276.93
http://statistics.data.gov.uk/id/local-authority-district/23UB,Cheltenham Borough Council,"Cemetery, Crematorium and Churchyards",10016751,Direct Debit, CLARENCE ST,R2101-CUL117,Gas,05/10/2015,2050.52
http://statistics.data.gov.uk/id/local-authority-district/23UB,Cheltenham Borough Council,"Cemetery, Crematorium and Churchyards",10016751,Direct Debit, CEMETERY 1089862,R2101-CCM001,Gas,05/10/2015,3221.36
http://statistics.data.gov.uk/id/local-authority-district/23UB,Cheltenham Borough Council,Cheltenham Depot,10016751,Direct Debit, CEMETERY,R2101-CCM001,Gas,05/10/2015,4026.36
http://statistics.data.gov.uk/id/local-authority-district/23UB,Cheltenham Borough Council,Recreation Centre Repairs & Maintenance,10016756,Direct Debit,E-ON DEPOT,R2100-ADB103,Electricity,16/10/2015,2241.43
http://statistics.data.gov.uk/id/local-authority-district/23UB,Cheltenham Borough Council,Town Hall Repairs & Maintenance,10016756,Direct Debit,E-ON SWIMMING POOL,R2100-REC111,Electricity,16/10/2015,2301.86
http://statistics.data.gov.uk/id/local-authority-district/23UB,Cheltenham Borough Council,Art Gallery & Museum Repairs & Maintenance,10016756,Direct Debit,E-ON TOWN HALL,R2100-CUL112,Electricity,16/10/2015,2558.86
http://statistics.data.gov.uk/id/local-authority-district/23UB,Cheltenham Borough Council,Recreation Centre Repairs & Maintenance,10016756,Direct Debit,EON AGM,R2100-CUL117,Electricity,16/10/2015,2566.25
http://statistics.data.gov.uk/id/local-authority-district/23UB,Cheltenham Borough Council,Cheltenham Municipal Offices,10016756,Direct Debit,E-ON REC CENTRE,R2100-REC111,Electricity,16/10/2015,2788.49
http://statistics.data.gov.uk/id/local-authority-district/23UB,Cheltenham Borough Council,Car Parks - Off Street Operations,10016756,Direct Debit,E-ON MUNI,R2100-ADB101,Electricity,16/10/2015,4018.91
http://statistics.data.gov.uk/id/local-authority-district/23UB,Cheltenham Borough Council,Recreation Centre Repairs & Maintenance,10016757,Direct Debit,STREAMLINE H8143785,R4428-CPK001,Services - credit card charges,21/10/2015,2617.65
http://statistics.data.gov.uk/id/local-authority-district/23UB,Cheltenham Borough Council,Treasury Management,10016815,Direct Debit,SEVERN TRENT REC CENTRE WATER SUPPLY,R4201-REC111,Uniforms,23/10/2015,2877.63
http://statistics.data.gov.uk/id/local-authority-district/23UB,Cheltenham Borough Council,"Cemetery, Crematorium and Churchyards",10016819,Direct Debit,SERVICE CHARGE,R4403-COR006,Bank Charges,30/10/2015,1723.07
http://statistics.data.gov.uk/id/local-authority-district/23UB,Cheltenham Borough Council,Pittville Pump Room Repairs & Maintenance,10016844,Direct Debit,SOUTHERN ELECTRIC,R2100-CCM001,Electricity,03/11/2015,589.07
http://statistics.data.gov.uk/id/local-authority-district/23UB,Cheltenham Borough Council,Car Parks - Off Street Operations,10016844,Direct Debit,SOUTHERN ELECTRIC,R2100-CUL113,Electricity,03/11/2015,787.52
http://statistics.data.gov.uk/id/local-authority-district/23UB,Cheltenham Borough Council,Art Gallery & Museum Repairs & Maintenance,10016844,Direct Debit,SOUTHERN ELECTRIC,R2100-CPK001,Electricity,03/11/2015,1506.59
http://statistics.data.gov.uk/id/local-authority-district/23UB,Cheltenham Borough Council,Sports & Open Spaces Operations,10016844,Direct Debit,SOUTHERN ELECTRIC,R2100-CUL117,Electricity,03/11/2015,1924.02
http://statistics.data.gov.uk/id/local-authority-district/23UB,Cheltenham Borough Council,Recreation Centre Repairs & Maintenance,10016844,Direct Debit,SOUTHERN ELECTRIC,R2100-OPS002,Electricity,03/11/2015,1993.37
http://statistics.data.gov.uk/id/local-authority-district/23UB,Cheltenham Borough Council,Supervision and Management,10016844,Direct Debit,SOUTHERN ELECTRIC,R2100-REC111,Electricity,03/11/2015,3817.85
http://statistics.data.gov.uk/id/local-authority-district/23UB,Cheltenham Borough Council,New Cremators,10016844,Direct Debit,SOUTHERN ELECTRIC,R2100-HRA110,Electricity,03/11/2015,7608.22
http://statistics.data.gov.uk/id/local-authority-district/23UB,Cheltenham Borough Council,Cheltenham Depot,10016873,Direct Debit,Tewkesbury BC,C1005-CAP001,Surveyors Fees,06/11/2015,577.50
http://statistics.data.gov.uk/id/local-authority-district/23UB,Cheltenham Borough Council,Car Parks - Off Street Operations,10016884,Direct Debit,WATER SUPPLY ENV MAINT,R2401-ADB103,Water Services - Metered,26/10/2015,734.85
http://statistics.data.gov.uk/id/local-authority-district/23UB,Cheltenham Borough Council,Cheltenham Depot,10016884,Direct Debit,DRAINAGE  CHG NORTHFIELD TERRACE  CAR PK,R2402-CPK001,Sewerage and Environmental Services,26/10/2015,707.19
http://statistics.data.gov.uk/id/local-authority-district/23UB,Cheltenham Borough Council,Treasury Management,10016884,Direct Debit,WATER DRAINAGE  ENV MAINT,R2402-ADB103,Sewerage and Environmental Services,26/10/2015,1275.43
http://statistics.data.gov.uk/id/local-authority-district/23UB,Cheltenham Borough Council,Treasury Management,10016931,Direct Debit,CARDNET SVCCHG 1602,R4428-COR006,Services - credit card charges,13/11/2015,850.41
http://statistics.data.gov.uk/id/local-authority-district/23UB,Cheltenham Borough Council,Treasury Management,10016931,Direct Debit,CARDNET SVCCHG 1866,R4428-COR006,Services - credit card charges,13/11/2015,1498.15
http://statistics.data.gov.uk/id/local-authority-district/23UB,Cheltenham Borough Council,Recreation Centre Repairs & Maintenance,10016931,Direct Debit,CARDNET SVCCHG 738,R4428-COR006,Services - credit card charges,13/11/2015,1877.96
http://statistics.data.gov.uk/id/local-authority-district/23UB,Cheltenham Borough Council,Cheltenham Depot,10016936,Direct Debit,EON SWIMMING POOL,R2100-REC111,Electricity,16/11/2015,2071.12
http://statistics.data.gov.uk/id/local-authority-district/23UB,Cheltenham Borough Council,Recreation Centre Repairs & Maintenance,10016936,Direct Debit,EON DEPOT,R2100-ADB103,Electricity,16/11/2015,2497.66
http://statistics.data.gov.uk/id/local-authority-district/23UB,Cheltenham Borough Council,Town Hall Repairs & Maintenance,10016936,Direct Debit,EON REC CENTRE,R2100-REC111,Electricity,16/11/2015,3046.19
http://statistics.data.gov.uk/id/local-authority-district/23UB,Cheltenham Borough Council,Cheltenham Municipal Offices,10016936,Direct Debit,EON TOWN HALL,R2100-CUL112,Electricity,16/11/2015,3979.61
http://statistics.data.gov.uk/id/local-authority-district/23UB,Cheltenham Borough Council,Art Gallery & Museum Repairs & Maintenance,10016936,Direct Debit,EON MUNI,R2100-ADB101,Electricity,16/11/2015,4277.58
http://statistics.data.gov.uk/id/local-authority-district/23UB,Cheltenham Borough Council,Cheltenham Municipal Offices,10016947,Direct Debit,EON AGM,R2100-CUL117,Electricity,17/11/2015,2876.83
http://statistics.data.gov.uk/id/local-authority-district/23UB,Cheltenham Borough Council,Supervision and Management,10016950,Direct Debit, MUNI,R2101-ADB101,Gas,29/09/2015,608.68
http://statistics.data.gov.uk/id/local-authority-district/23UB,Cheltenham Borough Council,Supervision and Management,10016950,Direct Debit, GOLDFOOT HSE,R2101-HRA110,Gas,29/09/2015,610.21
http://statistics.data.gov.uk/id/local-authority-district/23UB,Cheltenham Borough Council,"Cemetery, Crematorium and Churchyards",10016950,Direct Debit, COOPERS CT,R2101-HRA110,Gas,29/09/2015,619.84
http://statistics.data.gov.uk/id/local-authority-district/23UB,Cheltenham Borough Council,Recreation Centre Repairs & Maintenance,10016950,Direct Debit, CREM,R2101-CCM001,Gas,29/09/2015,3399.65
http://statistics.data.gov.uk/id/local-authority-district/23UB,Cheltenham Borough Council,Town Hall Repairs & Maintenance,10016950,Direct Debit, REC CENTRE,R2101-REC111,Gas,29/09/2015,5959.57
http://statistics.data.gov.uk/id/local-authority-district/23UB,Cheltenham Borough Council,Supervision and Management,10016950,Direct Debit, TOWN HALL,R2101-CUL112,Gas,29/09/2015,59119.81
http://statistics.data.gov.uk/id/local-authority-district/23UB,Cheltenham Borough Council,Supervision and Management,10016952,Direct Debit, GILBERT WARD CT,R2101-HRA110,Gas,22/10/2015,528.86
http://statistics.data.gov.uk/id/local-authority-district/23UB,Cheltenham Borough Council,Cheltenham Depot,10016952,Direct Debit, WALLACE HSE,R2101-HRA110,Gas,22/10/2015,661.19
http://statistics.data.gov.uk/id/local-authority-district/23UB,Cheltenham Borough Council,Supervision and Management,10016952,Direct Debit, MUNI,R2101-ADB103,Gas,22/10/2015,690.71
http://statistics.data.gov.uk/id/local-authority-district/23UB,Cheltenham Borough Council,Supervision and Management,10016952,Direct Debit, GOLDFOOT HSE,R2101-HRA110,Gas,22/10/2015,760.26
http://statistics.data.gov.uk/id/local-authority-district/23UB,Cheltenham Borough Council,Cheltenham Depot,10016952,Direct Debit, COOPERS CT,R2101-HRA110,Gas,22/10/2015,760.61
http://statistics.data.gov.uk/id/local-authority-district/23UB,Cheltenham Borough Council,Art Gallery & Museum Repairs & Maintenance,10016952,Direct Debit, DEPOT,R2101-ADB103,Gas,22/10/2015,886.40
http://statistics.data.gov.uk/id/local-authority-district/23UB,Cheltenham Borough Council,"Cemetery, Crematorium and Churchyards",10016952,Direct Debit, AGM,R2101-CUL117,Gas,22/10/2015,1319.68
http://statistics.data.gov.uk/id/local-authority-district/23UB,Cheltenham Borough Council,Recreation Centre Repairs & Maintenance,10016952,Direct Debit, CREM,R2101-CCM001,Gas,22/10/2015,3846.07
http://statistics.data.gov.uk/id/local-authority-district/23UB,Cheltenham Borough Council,Car Parks - Off Street Operations,10016952,Direct Debit, REC CENTRE,R2101-REC111,Gas,22/10/2015,10098.35
http://statistics.data.gov.uk/id/local-authority-district/23UB,Cheltenham Borough Council,Cheltenham Depot,10016964,Direct Debit,S/LINE H8595378 DDINV 26621172,R4428-CPK001,Services - credit card charges,19/11/2015,2932.78
http://statistics.data.gov.uk/id/local-authority-district/23UB,Cheltenham Borough Council,Cheltenham Depot,10016995,Direct Debit,SEVERN TRENT ENV MAINTENANCE,R2401-ADB103,Water Services - Metered,24/11/2015,822.42
http://statistics.data.gov.uk/id/local-authority-district/23UB,Cheltenham Borough Council,Supervision and Management,10016995,Direct Debit,SEVERN TRENT ENV MAINTENANCE,R2402-ADB103,Sewerage and Environmental Services,24/11/2015,1364.28
http://statistics.data.gov.uk/id/local-authority-district/23UB,Cheltenham Borough Council,Treasury Management,10016997,Direct Debit,VODAFONE,R4507-HRA110,Comms - Mobile Telephones,09/11/2015,2886.48
http://statistics.data.gov.uk/id/local-authority-district/23UB,Cheltenham Borough Council,Pittville Pump Room Repairs & Maintenance,10017025,Direct Debit,SERVICE CHARGE,R4403-COR006,Bank Charges,30/11/2015,1725.65
http://statistics.data.gov.uk/id/local-authority-district/23UB,Cheltenham Borough Council,Supervision and Management,10017050,Direct Debit, PPR,R2101-CUL113,Gas,23/11/2015,514.97
http://statistics.data.gov.uk/id/local-authority-district/23UB,Cheltenham Borough Council,Supervision and Management,10017050,Direct Debit, POPES CL,R2101-HRA110,Gas,23/11/2015,542.49
http://statistics.data.gov.uk/id/local-authority-district/23UB,Cheltenham Borough Council,Supervision and Management,10017050,Direct Debit, GILBERT WARD CT,R2101-HRA110,Gas,23/11/2015,592.17
http://statistics.data.gov.uk/id/local-authority-district/23UB,Cheltenham Borough Council,Supervision and Management,10017050,Direct Debit, WALLACE HSE,R2101-HRA110,Gas,23/11/2015,693.80
http://statistics.data.gov.uk/id/local-authority-district/23UB,Cheltenham Borough Council,Town Hall Repairs & Maintenance,10017050,Direct Debit, COOPERS CT,R2101-HRA110,Gas,23/11/2015,728.40
http://statistics.data.gov.uk/id/local-authority-district/23UB,Cheltenham Borough Council,Supervision and Management,10017050,Direct Debit, TOWN HALL,R2101-CUL112,Gas,23/11/2015,834.25
http://statistics.data.gov.uk/id/local-authority-district/23UB,Cheltenham Borough Council,Arle Road Nursery Operations,10017050,Direct Debit, GOLDFOOT HSE,R2101-HRA110,Gas,23/11/2015,959.05
http://statistics.data.gov.uk/id/local-authority-district/23UB,Cheltenham Borough Council,Cheltenham Municipal Offices,10017050,Direct Debit, ARLE  NURSERY,R2101-OPS101,Gas,23/11/2015,996.00
http://statistics.data.gov.uk/id/local-authority-district/23UB,Cheltenham Borough Council,Art Gallery & Museum Repairs & Maintenance,10017050,Direct Debit, MUNI,R2101-ADB101,Gas,23/11/2015,1418.79
http://statistics.data.gov.uk/id/local-authority-district/23UB,Cheltenham Borough Council,Cheltenham Depot,10017050,Direct Debit, AGM,R2101-CUL117,Gas,23/11/2015,1783.99
http://statistics.data.gov.uk/id/local-authority-district/23UB,Cheltenham Borough Council,"Cemetery, Crematorium and Churchyards",10017050,Direct Debit, DEPOT,R2101-ADB103,Gas,23/11/2015,2288.61
http://statistics.data.gov.uk/id/local-authority-district/23UB,Cheltenham Borough Council,Recreation Centre Repairs & Maintenance,10017050,Direct Debit, CREM,R2101-CCM001,Gas,23/11/2015,4090.28
http://statistics.data.gov.uk/id/local-authority-district/23UB,Cheltenham Borough Council,Recreation Centre Repairs & Maintenance,10017050,Direct Debit, REC CENTRE,R2101-REC111,Gas,23/11/2015,10590.16
,,,,Direct Debit,SEVERN TRENT REC CENTRE WATER SUPPLY,R2401-REC111,Water Services - Metered,23/11/2015,1998.81
